fUST/lending_fUST_20250121
["ID","MTS","AMOUNT","RATE_DAILY","PERIOD"]
[349722158,1737394247776,-453.92532285,0.00023659,3]
[349722160,1737394247785,-500.0,0.00023664,2]
[349722162,1737394247794,-1737.85,0.00023698,3]
[349722164,1737394247803,-1170.52,0.00023698,3]
[349722166,1737394247813,-527.87,0.00023698,3]
[349722168,1737394247823,-500.0,0.00023698,3]
[349722170,1737394247832,-640.18,0.00023698,3]
[349722172,1737394247841,-500.0,0.00023698,3]
[349722174,1737394247851,-453.92532285,0.00023728,3]
[349722176,1737394247861,-453.92532285,0.00023797,3]
[349722178,1737394247870,-1716.81,0.00023816,3]
[349722180,1737394247880,-1716.81,0.00023816,3]
[349722182,1737394247890,-1716.81,0.00023816,3]
[349722184,1737394247899,-1716.81,0.00023816,3]
[349722186,1737394247909,-1716.87,0.00023816,3]
[349722188,1737394247918,-420.0,0.00023817,2]
[349722190,1737394247928,-658.369603,0.00023829,2]
[349722192,1737394247938,-1737.85,0.00023835,3]
[349722194,1737394247947,-527.87,0.00023835,3]
[349722196,1737394247956,-1170.52,0.00023835,3]
[349722198,1737394247969,-500.0,0.00023835,3]
[349722200,1737394247982,-640.18,0.00023835,3]
[349722202,1737394247991,-426.97190091,0.00023835,3]
[349722204,1737394248000,-453.92532285,0.00023866,3]
[349722206,1737394248010,-158.0,0.00023878,2]
[349722208,1737394248019,-158.0,0.00023878,2]
[349722210,1737394248030,-158.0,0.00023878,2]
[349722212,1737394248041,-158.0,0.00023878,2]
[349722214,1737394248050,-158.0,0.00023878,2]
[349722216,1737394248060,-158.0,0.00023878,2]
[349722218,1737394248069,-158.0,0.00023878,2]
[349722220,1737394248079,-158.0,0.00023878,2]
[349722222,1737394248088,-158.0,0.00023878,2]
[349722224,1737394248099,-158.0,0.00023878,2]
[349722226,1737394248109,-158.0,0.00023878,2]
[349722228,1737394248118,-158.0,0.00023878,2]
[349722230,1737394248128,-158.0,0.00023878,2]
[349722232,1737394248138,-158.0,0.00023878,2]
[349722234,1737394248149,-158.0,0.00023878,2]
[349722236,1737394248159,-158.0,0.00023878,2]
[349722238,1737394248170,-158.0,0.00023878,2]
[349722240,1737394248179,-158.0,0.00023878,2]
[349722242,1737394248189,-453.92532285,0.00023934,3]
[349722244,1737394248199,-500.0,0.00023971,3]
[349722246,1737394248209,-500.0,0.00023971,3]
[349722248,1737394248219,-1737.85,0.00023972,3]
[349722250,1737394248235,-527.87,0.00023972,3]
[349722252,1737394248246,-1170.52,0.00023972,3]
[349722254,1737394248258,-500.0,0.00023972,3]
[349722256,1737394248268,-640.18,0.00023972,3]
[349722258,1737394248279,-453.92532285,0.00024003,3]
[349722260,1737394248289,-453.92532285,0.00024072,3]
[349722262,1737394248299,-1737.85,0.00024109,3]
[349722264,1737394248309,-527.87,0.00024109,3]
[349722266,1737394248320,-1170.52,0.00024109,3]
[349722268,1737394248331,-500.0,0.00024109,3]
[349722270,1737394248341,-640.18,0.00024109,3]
[349722272,1737394248351,-453.92532285,0.00024141,3]
[349722274,1737394248361,-1000.0,0.00024147,2]
[349722276,1737394248371,-658.369603,0.00024164,2]
[349722278,1737394248381,-500.0,0.00024172,3]
[349722280,1737394248390,-489.43,0.00024172,3]
[349722282,1737394248400,-500.0,0.00024172,3]
[349722284,1737394248410,-2000.0,0.000242,2]
[349722286,1737394248419,-453.92532285,0.0002421,3]
[349722288,1737394248429,-500.0,0.00024212,2]
[349722290,1737394248439,-1737.85,0.00024246,3]
[349722292,1737394248449,-527.87,0.00024246,3]
[349722294,1737394248459,-1170.52,0.00024246,3]
[349722296,1737394248470,-500.0,0.00024246,3]
[349722298,1737394248485,-640.18,0.00024246,3]
[349722300,1737394248495,-2660.94828236,0.00024264,5]
[349722302,1737394248504,-1008.09651511,0.00024264,5]
[349722304,1737394248514,-1006.81272784,0.00024264,10]
[349722306,1737394248525,-326401.65747057,0.00024264,61]
[349722309,1737394248553,-1506.68561208,0.00024264,61]
[349722310,1737394248585,-293704.65028799,0.00024264,61]
[349722311,1737394248634,-150.0,0.00019954,2]
[349722312,1737394248644,-500.0,0.00021917,3]
[349722313,1737394248654,-7437.8452,0.00024264,61]
[349722314,1737394248666,-371568.79431028,0.00024264,61]
[349722811,1737394620769,165.994526,0.00013973,2]
[349722820,1737395218146,-500.0,0.00020228,2]
[349722821,1737395218324,-500.0,0.00020432,2]
[349722822,1737395218347,-2941.4754466,0.00021128,2]
[349722823,1737395218369,-300.0,0.00021916,2]
[349722824,1737395218391,-500.0,0.00021917,3]
[349722825,1737395218413,-500.0,0.00021917,3]
[349722826,1737395218436,-500.0,0.00021917,3]
[349722827,1737395218466,-500.0,0.00021917,3]
[349722828,1737395218493,-500.0,0.00021917,3]
[349722829,1737395218516,-500.0,0.00021917,3]
[349722830,1737395218539,-500.0,0.00021917,3]
[349722831,1737395218567,-387.20277416,0.00021917,3]
[349722832,1737395218589,-500.0,0.00021917,3]
[349722833,1737395218611,-500.0,0.00021917,3]
[349722834,1737395218633,-301.85053774,0.00021917,3]
[349722835,1737395218657,-500.0,0.00021917,3]
[349722836,1737395218679,-500.0,0.00021917,3]
[349722837,1737395218711,-500.0,0.00021917,3]
[349722838,1737395218735,-500.0,0.00021917,3]
[349722839,1737395218758,-268.81630114,0.00021917,3]
[349722840,1737395218780,-500.0,0.00021917,3]
[349722841,1737395218804,-500.0,0.00021917,3]
[349722842,1737395218826,-482.53943736,0.00021917,3]
[349722927,1737395434801,-313.598,0.00020228,2]
[349722929,1737395434811,-313.598,0.00020432,2]
[349722931,1737395434822,-576.07340266,0.00021817,2]
[349722933,1737395434832,-300.0,0.00021916,2]
[349722935,1737395434841,-153.47,0.00021917,2]
[349722937,1737395434851,-500.0,0.00021917,3]
[349722939,1737395434861,-542.94,0.00021917,3]
[349722940,1737395434871,-500.0,0.00021917,3]
[349722942,1737395434880,-518.68,0.00021917,3]
[349722944,1737395434889,-500.0,0.00021917,3]
[349722945,1737395434899,-500.0,0.00021917,3]
[349722947,1737395434908,-500.0,0.00021917,3]
[349722949,1737395434918,-500.0,0.00021917,3]
[349722951,1737395434928,-339.61899784,0.00021917,3]
[349722953,1737395434938,-500.0,0.00021917,3]
[349722955,1737395434948,-500.0,0.00021917,3]
[349722957,1737395434958,-500.0,0.00021917,3]
[349722958,1737395434967,-500.0,0.00021917,3]
[349722961,1737395434976,-500.0,0.00021917,3]
[349722963,1737395434986,-254.00863574,0.00021917,3]
[349722964,1737395434996,-499.69748432,0.00021917,3]
[349722967,1737395435006,-500.0,0.00021917,3]
[349722968,1737395435016,-500.0,0.00021917,3]
[349722969,1737395435026,-308.52134638,0.00021917,3]
[349722970,1737395435036,-500.0,0.00021917,3]
[349722971,1737395435049,-500.0,0.00021917,3]
[349722972,1737395435058,-500.0,0.00021917,3]
[349722973,1737395435067,-500.0,0.00021917,3]
[349722974,1737395435077,-512.11185753,0.00021917,3]
[349722975,1737395435086,-500.0,0.00021917,3]
[349722976,1737395435095,-500.0,0.00021917,3]
[349722977,1737395435113,-500.0,0.00021917,3]
[349722978,1737395435125,-538.23756892,0.00021917,3]
[349722979,1737395435134,-500.0,0.00021917,3]
[349722980,1737395435144,-500.0,0.00021917,3]
[349722981,1737395435167,-500.0,0.00021917,3]
[349722982,1737395435176,-500.0,0.00021917,3]
[349722983,1737395435186,-500.0,0.00021917,3]
[349722984,1737395435195,-500.0,0.00021917,3]
[349722985,1737395435205,-307.09793098,0.00021917,3]
[349722986,1737395435215,-380.83430466,0.00021917,2]
[349722987,1737395435225,-500.0,0.00021917,3]
[349722988,1737395435234,-500.0,0.00021917,3]
[349722989,1737395435243,-500.0,0.00021917,3]
[349722990,1737395435253,-500.0,0.00021917,3]
[349722991,1737395435263,-500.0,0.00021917,3]
[349722992,1737395435273,-500.0,0.00021917,3]
[349722993,1737395435282,-500.0,0.00021917,3]
[349722994,1737395435294,-500.0,0.00021917,3]
[349722995,1737395435303,-500.0,0.00021917,3]
[349722996,1737395435313,-336.28635912,0.00021917,3]
[349722997,1737395435322,-500.0,0.00021917,3]
[349722998,1737395435332,-333.00754812,0.00021917,3]
[349722999,1737395435349,-166.99245188,0.00021917,3]
[349723000,1737395435359,-500.0,0.00021917,3]
[349723001,1737395435369,-500.0,0.00021917,3]
[349723002,1737395435378,-376.42416754,0.00021917,3]
[349723003,1737395435388,-500.0,0.00021917,2]
[349723004,1737395435397,-500.0,0.00021917,3]
[349723005,1737395435408,-500.0,0.00021917,3]
[349723006,1737395435418,-500.0,0.00021917,3]
[349723007,1737395435428,-505.61327145,0.00021917,3]
[349723008,1737395435438,-500.0,0.00021917,3]
[349723009,1737395435448,-500.0,0.00021917,3]
[349723010,1737395435457,-500.0,0.00021917,3]
[349723011,1737395435467,-563.49,0.00021917,3]
[349723012,1737395435477,-500.0,0.00021917,3]
[349723013,1737395435486,-663.11,0.00021917,2]
[349723014,1737395435496,-550.51535658,0.00021917,3]
[349723015,1737395435506,-500.0,0.00021917,3]
[349723016,1737395435516,-500.0,0.00021917,3]
[349723017,1737395435526,-500.0,0.00021917,3]
[349723018,1737395435537,-345.27096039,0.00021917,3]
[349723019,1737395435558,-154.72903961,0.00021917,3]
[349723020,1737395435567,-500.0,0.00021917,3]
[349723021,1737395435576,-500.0,0.00021917,3]
[349723022,1737395435587,-500.0,0.00021917,3]
[349723023,1737395435598,-500.0,0.00021917,3]
[349723024,1737395435607,-500.0,0.00021917,3]
[349723025,1737395435617,-500.0,0.00021917,3]
[349723026,1737395435627,-500.0,0.00021917,3]
[349723027,1737395435637,-500.0,0.00021917,3]
[349723028,1737395435647,-500.0,0.00021917,3]
[349723029,1737395435657,-500.0,0.00021917,3]
[349723030,1737395435667,-510.78865784,0.00021917,3]
[349723031,1737395435677,-500.0,0.00021917,3]
[349723032,1737395435687,-500.0,0.00021917,3]
[349723033,1737395435697,-500.0,0.00021917,3]
[349723034,1737395435707,-500.0,0.00021917,3]
[349723035,1737395435717,-1665.44,0.00021917,3]
[349723036,1737395435727,-515.72813484,0.00021917,3]
[349723037,1737395435737,-500.0,0.00021917,3]
[349723038,1737395435747,-500.0,0.00021917,3]
[349723039,1737395435757,-500.0,0.00021917,3]
[349723040,1737395435768,-500.0,0.00021917,2]
[349723041,1737395435778,-500.0,0.00021917,3]
[349723042,1737395435787,-500.0,0.00021917,3]
[349723043,1737395435801,-500.0,0.00021917,3]
[349723044,1737395435811,-500.0,0.00021917,3]
[349723045,1737395435821,-500.0,0.00021917,3]
[349723046,1737395435831,-500.0,0.00021917,3]
[349723047,1737395435841,-500.0,0.00021917,3]
[349723048,1737395435851,-500.0,0.00021917,3]
[349723049,1737395435861,-602.41196835,0.00021917,3]
[349723050,1737395435871,-500.0,0.00021917,3]
[349723051,1737395435881,-500.0,0.00021917,3]
[349723052,1737395435891,-500.0,0.00021917,3]
[349723053,1737395435901,-500.0,0.00021917,3]
[349723054,1737395435911,-500.0,0.00021917,3]
[349723055,1737395435921,-500.0,0.00021917,3]
[349723056,1737395435931,-500.0,0.00021917,3]
[349723057,1737395435941,-500.0,0.00021917,3]
[349723058,1737395435951,-500.0,0.00021917,3]
[349723059,1737395435961,-500.0,0.00021917,3]
[349723060,1737395435974,-505.88,0.00021917,3]
[349723061,1737395435984,-500.0,0.00021917,3]
[349723062,1737395435994,-500.0,0.00021917,3]
[349723063,1737395436005,-500.0,0.00021917,3]
[349723064,1737395436015,-500.0,0.00021917,3]
[349723065,1737395436025,-500.0,0.00021917,3]
[349723066,1737395436035,-500.0,0.00021917,3]
[349723067,1737395436047,-500.0,0.00021917,3]
[349723068,1737395436056,-500.0,0.00021917,3]
[349723069,1737395436066,-500.0,0.00021917,3]
[349723070,1737395436076,-500.0,0.00021917,3]
[349723071,1737395436086,-500.0,0.00021917,3]
[349723072,1737395436096,-500.0,0.00021917,3]
[349723073,1737395436105,-500.0,0.00021917,3]
[349723074,1737395436115,-500.0,0.00021917,3]
[349723075,1737395436125,-500.0,0.00021917,3]
[349723076,1737395436135,-500.0,0.00021917,3]
[349723077,1737395436145,-500.0,0.00021917,3]
[349723078,1737395436155,-500.0,0.00021917,3]
[349723079,1737395436164,-500.0,0.00021917,3]
[349723080,1737395436175,-500.0,0.00021917,3]
[349723081,1737395436186,-500.0,0.00021917,3]
[349723082,1737395436197,-500.0,0.00021917,3]
[349723083,1737395436207,-500.0,0.00021917,3]
[349723084,1737395436217,-500.0,0.00021917,3]
[349723085,1737395436227,-379.17032955,0.00021917,3]
[349723086,1737395436237,-500.0,0.00021917,3]
[349723087,1737395436246,-500.0,0.00021917,3]
[349723088,1737395436256,-501.05930482,0.00021917,3]
[349723089,1737395436266,-500.0,0.00021917,3]
[349723090,1737395436275,-500.0,0.00021917,3]
[349723091,1737395436285,-500.0,0.00021917,3]
[349723092,1737395436297,-500.0,0.00021917,3]
[349723093,1737395436306,-500.0,0.00021917,3]
[349723094,1737395436316,-500.0,0.00021917,3]
[349723095,1737395436326,-500.0,0.00021917,3]
[349723096,1737395436335,-500.0,0.00021917,3]
[349723097,1737395436345,-500.0,0.00021917,3]
[349723098,1737395436354,-500.0,0.00021917,3]
[349723099,1737395436364,-500.0,0.00021917,3]
[349723100,1737395436374,-500.0,0.00021917,3]
[349723101,1737395436384,-500.0,0.00021917,2]
[349723102,1737395436394,-500.0,0.00021917,3]
[349723103,1737395436404,-500.0,0.00021917,3]
[349723104,1737395436414,-500.0,0.00021917,3]
[349723105,1737395436425,-500.0,0.00021917,3]
[349723106,1737395436435,-676.12,0.00021917,3]
[349723107,1737395436444,-500.0,0.00021917,3]
[349723108,1737395436454,-500.0,0.00021917,3]
[349723109,1737395436465,-500.0,0.00021917,3]
[349723110,1737395436475,-500.0,0.00021917,3]
[349723111,1737395436484,-500.0,0.00021917,3]
[349723112,1737395436494,-500.0,0.00021917,3]
[349723113,1737395436504,-500.0,0.00021917,3]
[349723114,1737395436514,-500.0,0.00021917,3]
[349723115,1737395436525,-500.0,0.00021917,3]
[349723116,1737395436537,-500.0,0.00021917,3]
[349723117,1737395436552,-500.0,0.00021917,3]
[349723118,1737395436562,-500.0,0.00021917,3]
[349723119,1737395436572,-503.1017637,0.00021917,3]
[349723120,1737395436582,-500.0,0.00021917,3]
[349723121,1737395436592,-500.0,0.00021917,3]
[349723122,1737395436602,-500.0,0.00021917,3]
[349723123,1737395436612,-500.0,0.00021917,3]
[349723124,1737395436623,-550.71,0.00021917,3]
[349723125,1737395436633,-500.0,0.00021917,3]
[349723126,1737395436643,-500.0,0.00021917,3]
[349723127,1737395436653,-500.0,0.00021917,3]
[349723128,1737395436664,-500.0,0.00021917,3]
[349723129,1737395436674,-167.64303334,0.00022053,2]
[349723130,1737395436685,-500.0,0.00022053,3]
[349723131,1737395436695,-1121.75,0.00022053,3]
[349723132,1737395436704,-500.0,0.00022053,3]
[349723133,1737395436715,-500.0,0.00022054,3]
[349723134,1737395436725,-500.0,0.00022054,3]
[349723135,1737395436735,-500.0,0.00022054,3]
[349723136,1737395436745,-500.0,0.00022054,3]
[349723137,1737395436755,-500.0,0.00022054,3]
[349723138,1737395436764,-500.0,0.00022054,3]
[349723139,1737395436774,-500.0,0.00022054,3]
[349723140,1737395436784,-500.0,0.00022054,3]
[349723141,1737395436795,-500.0,0.00022054,3]
[349723142,1737395436805,-500.0,0.00022054,3]
[349723143,1737395436815,-500.0,0.00022054,3]
[349723144,1737395436824,-500.0,0.00022054,3]
[349723145,1737395436834,-254.02952928,0.00022054,3]
[349723146,1737395436845,-500.0,0.00022054,3]
[349723147,1737395436855,-521.72516624,0.00022054,3]
[349723148,1737395436864,-500.0,0.00022054,3]
[349723149,1737395436874,-500.0,0.00022054,3]
[349723150,1737395436884,-280.44625145,0.00022054,3]
[349723151,1737395436894,-500.0,0.00022054,2]
[349723152,1737395436904,-500.0,0.00022054,3]
[349723153,1737395436914,-500.0,0.00022054,3]
[349723154,1737395436924,-500.0,0.00022054,3]
[349723155,1737395436935,-434.17084414,0.00022054,3]
[349723156,1737395436944,-267.89,0.00022054,3]
[349723157,1737395436955,-663.11,0.00022054,2]
[349723158,1737395436965,-500.0,0.00022054,3]
[349723159,1737395436974,-500.0,0.00022054,3]
[349723160,1737395436984,-618.64597035,0.00022054,3]
[349723161,1737395436994,-500.0,0.00022054,3]
[349723162,1737395437003,-500.0,0.00022054,3]
[349723163,1737395437013,-500.0,0.00022054,3]
[349723164,1737395437023,-500.0,0.00022054,3]
[349723165,1737395437032,-1665.44,0.00022054,3]
[349723166,1737395437043,-500.0,0.00022054,3]
[349723167,1737395437053,-241.68578211,0.00022054,3]
[349723168,1737395437063,-500.0,0.00022054,3]
[349723169,1737395437073,-500.0,0.00022054,3]
[349723170,1737395437083,-500.0,0.00022054,3]
[349723171,1737395437092,-500.0,0.00022054,3]
[349723172,1737395437103,-500.0,0.00022054,3]
[349723173,1737395437112,-500.0,0.00022054,3]
[349723174,1737395437122,-500.0,0.00022054,3]
[349723175,1737395437132,-500.0,0.00022054,3]
[349723176,1737395437141,-500.0,0.00022054,3]
[349723177,1737395437151,-500.0,0.00022054,3]
[349723178,1737395437164,-604.71202485,0.00022054,3]
[349723179,1737395437176,-500.0,0.00022054,3]
[349723180,1737395437185,-500.0,0.00022054,3]
[349723181,1737395437195,-505.88,0.00022054,3]
[349723182,1737395437205,-574.44526977,0.00022054,3]
[349723184,1737395437376,-500.0,0.00022054,3]
[349723185,1737395437388,-500.0,0.00022054,3]
[349723186,1737395437398,-500.0,0.00022054,3]
[349723187,1737395437407,-500.0,0.00022054,3]
[349723188,1737395437417,-500.0,0.00022054,3]
[349723189,1737395437426,-500.0,0.00022054,3]
[349723191,1737395437437,-500.0,0.00022054,3]
[349723192,1737395437447,-500.0,0.00022054,3]
[349723193,1737395437456,-500.0,0.00022054,3]
[349723195,1737395437465,-500.0,0.00022054,3]
[349723197,1737395437475,-500.0,0.00022054,3]
[349723199,1737395437484,-500.0,0.00022054,3]
[349723201,1737395437494,-500.0,0.00022054,3]
[349723203,1737395437503,-500.0,0.00022054,3]
[349723205,1737395437512,-500.0,0.00022054,3]
[349723207,1737395437521,-500.0,0.00022054,3]
[349723208,1737395437532,-500.0,0.00022054,3]
[349723210,1737395437544,-500.0,0.00022054,3]
[349723212,1737395437557,-500.0,0.00022054,3]
[349723215,1737395437568,-500.0,0.00022054,3]
[349723216,1737395437579,-500.0,0.00022054,3]
[349723218,1737395437590,-517.13008383,0.00022054,3]
[349723220,1737395437602,-258.75745228,0.00022054,3]
[349723222,1737395437613,-500.0,0.00022054,3]
[349723224,1737395437623,-500.0,0.00022054,3]
[349723227,1737395437637,-500.0,0.00022054,3]
[349723228,1737395437648,-541.00479234,0.00022054,3]
[349723231,1737395437658,-500.0,0.00022054,3]
[349723233,1737395437669,-500.0,0.00022054,3]
[349723235,1737395437680,-500.0,0.00022054,3]
[349723237,1737395437691,-500.0,0.00022054,3]
[349723239,1737395437701,-676.12,0.00022054,3]
[349723241,1737395437711,-500.0,0.00022054,3]
[349723243,1737395437721,-490.08645015,0.00022054,3]
[349723245,1737395437731,-350.0,0.00022054,3]
[349723247,1737395437741,-500.0,0.00022054,3]
[349723249,1737395437751,-500.0,0.00022054,3]
[349723251,1737395437761,-557.34060511,0.00022054,3]
[349723253,1737395437772,-500.0,0.00022054,3]
[349723255,1737395437782,-500.0,0.00022054,3]
[349723257,1737395437794,-500.0,0.00022054,3]
[349723259,1737395437812,-500.0,0.00022054,3]
[349723261,1737395437822,-500.0,0.00022054,3]
[349723263,1737395437832,-500.0,0.00022054,3]
[349723265,1737395437843,-500.0,0.00022054,3]
[349723267,1737395437852,-517.46056264,0.00022054,3]
[349723269,1737395437862,-152.0,0.0002207,2]
[349723271,1737395437872,-576.07340262,0.00022152,2]
[349723273,1737395437883,-500.0,0.0002219,3]
[349723275,1737395437893,-1121.75,0.0002219,3]
[349723277,1737395437904,-500.0,0.0002219,3]
[349723279,1737395437914,-242.59931682,0.00022191,3]
[349723281,1737395437924,-500.0,0.00022191,3]
[349723283,1737395437934,-591.51,0.00022191,3]
[349723285,1737395437943,-500.0,0.00022191,3]
[349723287,1737395437953,-537.74628432,0.00022191,3]
[349723289,1737395437962,-534.38206939,0.00022191,3]
[349723291,1737395437972,-635.25554884,0.00022191,3]
[349723294,1737395437981,-500.0,0.00022191,3]
[349723296,1737395437992,-264.03311846,0.00022191,3]
[349723298,1737395438001,-500.0,0.00022191,2]
[349723300,1737395438011,-663.11,0.00022191,2]
[349723302,1737395438021,-500.0,0.00022191,3]
[349723303,1737395438030,-533.94,0.00022191,3]
[349723306,1737395438040,-180.78,0.00022191,3]
[349723307,1737395438052,-500.0,0.00022191,3]
[349723310,1737395438062,-1665.44,0.00022191,3]
[349723312,1737395438071,-500.0,0.00022191,3]
[349723314,1737395438082,-203.26,0.00022191,3]
[349723316,1737395438091,-500.0,0.00022191,3]
[349723318,1737395438101,-335.79061621,0.00022191,3]
[349723320,1737395438110,-500.0,0.00022191,3]
[349723322,1737395438120,-500.0,0.00022191,3]
[349723324,1737395438130,-500.0,0.00022191,3]
[349723326,1737395438139,-500.0,0.00022191,3]
[349723328,1737395438149,-500.0,0.00022191,3]
[349723330,1737395438159,-500.0,0.00022191,3]
[349723332,1737395438168,-505.88,0.00022191,3]
[349723334,1737395438178,-500.0,0.00022191,3]
[349723336,1737395438188,-500.0,0.00022191,3]
[349723338,1737395438197,-500.0,0.00022191,3]
[349723340,1737395438206,-500.0,0.00022191,3]
[349723342,1737395438215,-448.03858931,0.00022191,3]
[349723344,1737395438224,-500.0,0.00022191,3]
[349723346,1737395438234,-500.0,0.00022191,3]
[349723348,1737395438243,-500.0,0.00022191,3]
[349723350,1737395438253,-500.0,0.00022191,3]
[349723352,1737395438262,-500.0,0.00022191,3]
[349723354,1737395438271,-504.80503079,0.00022191,3]
[349723356,1737395438280,-631.1,0.00022191,3]
[349723358,1737395438290,-500.0,0.00022191,3]
[349723360,1737395438301,-286.38185619,0.00022191,3]
[349723362,1737395438311,-500.0,0.00022191,3]
[349723363,1737395438321,-500.0,0.00022191,3]
[349723364,1737395438330,-500.0,0.00022191,3]
[349723365,1737395438339,-500.0,0.00022191,3]
[349723366,1737395438349,-259.74513049,0.00022191,3]
[349723367,1737395438359,-500.0,0.00022191,3]
[349723368,1737395438368,-500.0,0.00022191,3]
[349723369,1737395438378,-500.0,0.00022191,3]
[349723370,1737395438387,-676.12,0.00022191,3]
[349723372,1737395438397,-500.0,0.00022191,3]
[349723374,1737395438407,-500.0,0.00022191,3]
[349723376,1737395438416,-457.79,0.00022191,3]
[349723378,1737395438426,-500.0,0.00022191,3]
[349723380,1737395438435,-500.0,0.00022191,3]
[349723382,1737395438444,-500.0,0.00022191,3]
[349723384,1737395438454,-500.0,0.00022191,3]
[349723386,1737395438463,-500.0,0.00022274,2]
[349723388,1737395438472,-500.39717318,0.00022274,2]
[349723390,1737395438481,-500.0,0.00022327,3]
[349723392,1737395438491,-500.0,0.00022327,3]
[349723394,1737395438500,-500.0,0.00022327,3]
[349723396,1737395438509,-1121.75,0.00022327,3]
[349723398,1737395438519,-500.0,0.00022327,3]
[349723400,1737395438528,-500.0,0.00022328,2]
[349723402,1737395438543,-663.11,0.00022328,2]
[349723404,1737395438558,-500.0,0.00022328,3]
[349723406,1737395438568,-500.0,0.00022328,3]
[349723408,1737395438579,-1665.44,0.00022328,3]
[349723410,1737395438588,-500.0,0.00022328,3]
[349723412,1737395438598,-500.0,0.00022328,3]
[349723414,1737395438607,-500.0,0.00022328,3]
[349723416,1737395438617,-500.0,0.00022328,3]
[349723418,1737395438627,-505.88,0.00022328,3]
[349723420,1737395438637,-549.06630047,0.00022328,3]
[349723422,1737395438646,-500.0,0.00022328,3]
[349723424,1737395438656,-500.0,0.00022328,3]
[349723426,1737395438666,-500.0,0.00022328,3]
[349723428,1737395438675,-500.0,0.00022328,3]
[349723430,1737395438685,-431.49898908,0.00022328,3]
[349723432,1737395438694,-500.0,0.00022328,3]
[349723434,1737395438703,-500.0,0.00022328,3]
[349723436,1737395438713,-485.86200779,0.00022328,3]
[349723438,1737395438723,-500.0,0.00022328,3]
[349723440,1737395438732,-500.0,0.00022328,3]
[349723442,1737395438742,-676.12,0.00022328,3]
[349723444,1737395438751,-500.0,0.00022328,3]
[349723446,1737395438761,-500.0,0.00022328,3]
[349723448,1737395438771,-500.0,0.00022328,3]
[349723450,1737395438780,-500.0,0.00022328,3]
[349723452,1737395438790,-469.34861853,0.00022328,3]
[349723454,1737395438805,-500.0,0.00022428,2]
[349723456,1737395438818,-317.35006477,0.00022428,2]
[349723458,1737395438828,-1121.75,0.00022464,3]
[349723460,1737395438837,-500.0,0.00022465,2]
[349723462,1737395438846,-663.11,0.00022465,2]
[349723464,1737395438856,-500.0,0.00022465,3]
[349723466,1737395438866,-1665.44,0.00022465,3]
[349723468,1737395438875,-500.0,0.00022465,3]
[349723470,1737395438886,-500.0,0.00022465,3]
[349723472,1737395438895,-500.0,0.00022465,3]
[349723474,1737395438905,-500.0,0.00022465,3]
[349723476,1737395438915,-505.88,0.00022465,3]
[349723478,1737395438925,-500.0,0.00022465,3]
[349723480,1737395438934,-500.0,0.00022465,3]
[349723482,1737395438944,-500.0,0.00022465,3]
[349723484,1737395438954,-500.0,0.00022465,3]